fUST/lending_fUST_20250511
["ID","MTS","AMOUNT","RATE_DAILY","PERIOD"]
[360636125,1746912659528,-513.57,0.00010684,2]
[360636126,1746912659538,-802.91,0.00010684,2]
[360636128,1746912659548,-505.78,0.00010684,2]
[360636131,1746912659557,-626.66,0.00010684,2]
[360636132,1746912659567,-809.51,0.00010684,2]
[360636134,1746912659576,-400.0,0.00010684,2]
[360636136,1746912659585,-400.0,0.00010684,2]
[360636138,1746912659595,-400.0,0.00010684,2]
[360636140,1746912659604,-842.73,0.00010684,2]
[360636142,1746912659614,-697.59,0.00010684,2]
[360636144,1746912659623,-1841.44,0.00010684,2]
[360636146,1746912659632,-400.0,0.00010684,2]
[360636148,1746912659641,-788.65,0.00010684,2]
[360636150,1746912659651,-1039.37,0.00010684,2]
[360636152,1746912659660,-569.05,0.00010684,2]
[360636154,1746912659670,-2342.17,0.00010684,2]
[360636156,1746912659679,-451.36,0.00010684,2]
[360636158,1746912659688,-695.2,0.00010684,2]
[360636160,1746912659697,-1028.56,0.00010684,2]
[360636162,1746912659707,-400.0,0.00010684,2]
[360636164,1746912659716,-498.13,0.00010684,2]
[360636166,1746912659726,-2119.75,0.00010684,2]
[360636168,1746912659735,-4434.68,0.00010684,2]
[360636170,1746912659744,-935.35,0.00010684,2]
[360636172,1746912659753,-680.96,0.00010684,2]
[360636174,1746912659763,-626.61,0.00010684,2]
[360636176,1746912659773,-424.95,0.00010684,2]
[360636178,1746912659782,-1042.16,0.00010684,2]
[360636180,1746912659792,-2312.88,0.00010684,2]
[360636182,1746912659801,-400.0,0.00010684,2]
[360636184,1746912659811,-400.0,0.00010684,2]
[360636186,1746912659820,-688.73,0.00010684,2]
[360636188,1746912659830,-439.66,0.00010684,2]
[360636190,1746912659840,-706.22,0.00010684,2]
[360636192,1746912659850,-1085.41,0.00010684,2]
[360636194,1746912659859,-841.55,0.00010684,2]
[360636195,1746912659868,-671.75,0.00010684,2]
[360636196,1746912659877,-400.0,0.00010684,2]
[360636197,1746912659886,-2146.14,0.00010684,2]
[360636198,1746912659895,-1015.72,0.00010684,2]
[360636199,1746912659904,-6440.41,0.00010684,2]
[360636200,1746912659913,-1037.4,0.00010684,2]
[360636201,1746912659922,-400.0,0.00010684,2]
[360636202,1746912659931,-440.94,0.00010684,2]
[360636203,1746912659940,-400.0,0.00010684,2]
[360636204,1746912659949,-4790.07,0.00010684,2]
[360636205,1746912659959,-1429.95,0.00010684,2]
[360636206,1746912659968,-400.0,0.00010684,2]
[360636207,1746912659978,-400.0,0.00010684,2]
[360636208,1746912659987,-430.02,0.00010684,2]
[360636210,1746912659997,-400.0,0.00010684,2]
[360636212,1746912660006,-400.0,0.00010684,2]
[360636214,1746912660016,-400.0,0.00010684,2]
[360636216,1746912660026,-1223.02,0.00010684,2]
[360636218,1746912660036,-848.59,0.00010684,2]
[360636220,1746912660045,-400.0,0.00010684,2]
[360636222,1746912660055,-2882.98,0.00010684,2]
[360636224,1746912660065,-513.02,0.00010684,2]
[360636226,1746912660075,-463.45,0.00010684,2]
[360636228,1746912660084,-573.32,0.00010684,2]
[360636230,1746912660094,-1204.18,0.00010684,2]
[360636232,1746912660103,-1967.65,0.00010684,2]
[360636234,1746912660114,-3088.11,0.00010684,2]
[360636237,1746912660124,-400.0,0.00010684,2]
[360636239,1746912660133,-1232.95,0.00010684,2]
[360636241,1746912660143,-1041.57,0.00010684,2]
[360636243,1746912660152,-700.78,0.00010684,2]
[360636245,1746912660162,-4783.86,0.00010684,2]
[360636247,1746912660172,-407.69,0.00010684,2]
[360636249,1746912660182,-1652.45,0.00010684,2]
[360636251,1746912660191,-444.01,0.00010684,2]
[360636253,1746912660201,-1176.69,0.00010684,2]
[360636255,1746912660212,-513.96,0.00010684,2]
[360636257,1746912660221,-656.69,0.00010684,2]
[360636259,1746912660231,-400.0,0.00010684,2]
[360636261,1746912660241,-1565.91,0.00010684,2]
[360636263,1746912660251,-12500.0,0.00010689,2]
[360636265,1746912660262,-3228.59537383,0.00010689,2]
[360636267,1746912660272,-206.21698277,0.00010759,2]
[360636269,1746912660281,-823.0,0.00010776,2]
[360636271,1746912660291,-1543.0,0.00010776,2]
[360636273,1746912660300,-721.79953594,0.00010906,2]
[360636275,1746912660310,-151.0,0.00010957,2]
[360636277,1746912660320,-450.55,0.00010958,2]
[360636279,1746912660331,-400.0,0.00010958,2]
[360636282,1746912660341,-400.0,0.00010958,2]
[360636284,1746912660351,-194.69757181,0.00010958,2]
[360636286,1746912660361,-400.0,0.00010958,2]
[360636288,1746912660373,-326.85634099,0.00010958,2]
[360636290,1746912660384,-483.15,0.00010958,2]
[360636291,1746912660394,-400.0,0.00010958,2]
[360636294,1746912660403,-400.0,0.00010958,2]
[360636296,1746912660414,-400.0,0.00010958,2]
[360636298,1746912660424,-317.04147554,0.00010958,2]
[360636299,1746912660433,-400.0,0.00010958,2]
[360636302,1746912660443,-400.0,0.00010958,2]
[360636304,1746912660454,-400.0,0.00010958,2]
[360636306,1746912660466,-400.0,0.00010958,2]
[360636308,1746912660476,-400.0,0.00010958,2]
[360636310,1746912660486,-451.04814844,0.00010958,2]
[360636312,1746912660495,-400.0,0.00010958,2]
[360636314,1746912660507,-400.0,0.00010958,2]
[360636316,1746912660516,-400.0,0.00010958,2]
[360636318,1746912660526,-400.0,0.00010958,2]
[360636320,1746912660536,-400.0,0.00010958,2]
[360636322,1746912660545,-400.0,0.00010958,2]
[360636324,1746912660555,-767.08,0.00010958,2]
[360636326,1746912660565,-523.05,0.00010958,2]
[360636328,1746912660575,-224.83301878,0.00010958,2]
[360636330,1746912660584,-400.0,0.00010958,2]
[360636332,1746912660593,-400.0,0.00010958,2]
[360636334,1746912660604,-400.0,0.00010958,2]
[360636336,1746912660613,-428.69,0.00010958,2]
[360636338,1746912660622,-1231.88,0.00010958,2]
[360636340,1746912660632,-400.0,0.00010958,2]
[360636342,1746912660641,-400.0,0.00010958,2]
[360636344,1746912660651,-400.0,0.00010958,2]
[360636346,1746912660660,-531.20491459,0.00010958,2]
[360636348,1746912660669,-555.94,0.00010958,2]
[360636350,1746912660679,-1008.55,0.00010958,2]
[360636352,1746912660688,-400.0,0.00010958,2]
[360636354,1746912660697,-632.05,0.00010958,2]
[360636356,1746912660706,-1052.41,0.00010958,2]
[360636358,1746912660715,-400.0,0.00010958,2]
[360636360,1746912660725,-400.0,0.00010958,2]
[360636362,1746912660735,-459.64,0.00010958,2]
[360636364,1746912660744,-468.37,0.00010958,2]
[360636366,1746912660753,-403.73,0.00010958,2]
[360636368,1746912660762,-413.92,0.00010958,2]
[360636370,1746912660772,-619.62,0.00010958,2]
[360636372,1746912660781,-695.09,0.00010958,2]
[360636374,1746912660790,-735.58,0.00010958,2]
[360636376,1746912660800,-721.89,0.00010958,2]
[360636378,1746912660809,-400.0,0.00010958,2]
[360636380,1746912660819,-1548.4,0.00010958,2]
[360636382,1746912660828,-2356.91,0.00010958,2]
[360636384,1746912660837,-794.11,0.00010958,2]
[360636386,1746912660848,-400.0,0.00010958,2]
[360636388,1746912660857,-838.55,0.00010958,2]
[360636390,1746912660867,-400.0,0.00010958,2]
[360636392,1746912660876,-400.0,0.00010958,2]
[360636394,1746912660886,-3381.21,0.00010958,2]
[360636396,1746912660895,-400.0,0.00010958,2]
[360636398,1746912660904,-2898.64,0.00010958,2]
[360636400,1746912660914,-481.84,0.00010958,2]
[360636402,1746912660923,-400.0,0.00010958,2]
[360636404,1746912660933,-400.0,0.00010958,2]
[360636406,1746912660942,-400.0,0.00010958,2]
[360636408,1746912660952,-1333.51,0.00010958,2]
[360636410,1746912660961,-504.56712989,0.00010958,2]
[360636412,1746912660971,-633.58,0.00010958,2]
[360636414,1746912660981,-400.0,0.00010958,2]
[360636416,1746912660990,-240.25298412,0.00010958,2]
[360636418,1746912660999,-494.9,0.00010958,2]
[360636420,1746912661008,-513.57,0.00010958,2]
[360636422,1746912661018,-802.91,0.00010958,2]
[360636424,1746912661028,-505.78,0.00010958,2]
[360636426,1746912661038,-626.66,0.00010958,2]
[360636428,1746912661047,-809.51,0.00010958,2]
[360636430,1746912661057,-400.0,0.00010958,2]
[360636432,1746912661066,-400.0,0.00010958,2]
[360636434,1746912661076,-400.0,0.00010958,2]
[360636436,1746912661085,-842.73,0.00010958,2]
[360636438,1746912661095,-697.59,0.00010958,2]
[360636440,1746912661104,-1841.44,0.00010958,2]
[360636442,1746912661114,-400.0,0.00010958,2]
[360636444,1746912661123,-788.65,0.00010958,2]
[360636446,1746912661133,-1039.37,0.00010958,2]
[360636448,1746912661142,-569.05,0.00010958,2]
[360636450,1746912661151,-2342.17,0.00010958,2]
[360636452,1746912661161,-451.36,0.00010958,2]
[360636454,1746912661170,-695.2,0.00010958,2]
[360636456,1746912661180,-1028.56,0.00010958,2]
[360636458,1746912661189,-400.0,0.00010958,2]
[360636460,1746912661199,-498.13,0.00010958,2]
[360636462,1746912661208,-2119.75,0.00010958,2]
[360636464,1746912661219,-4434.68,0.00010958,2]
[360636466,1746912661228,-935.35,0.00010958,2]
[360636468,1746912661238,-680.96,0.00010958,2]
[360636470,1746912661248,-626.61,0.00010958,2]
[360636472,1746912661258,-424.95,0.00010958,2]
[360636474,1746912661269,-1042.16,0.00010958,2]
[360636476,1746912661279,-2312.88,0.00010958,2]
[360636478,1746912661288,-400.0,0.00010958,2]
[360636480,1746912661298,-400.0,0.00010958,2]
[360636482,1746912661307,-688.73,0.00010958,2]
[360636484,1746912661317,-706.22,0.00010958,2]
[360636486,1746912661327,-439.66,0.00010958,2]
[360636488,1746912661338,-1085.41,0.00010958,2]
[360636491,1746912661348,-841.55,0.00010958,2]
[360636492,1746912661358,-671.75,0.00010958,2]
[360636495,1746912661368,-400.0,0.00010958,2]
[360636497,1746912661383,-2146.14,0.00010958,2]
[360636498,1746912661392,-1015.72,0.00010958,2]
[360636501,1746912661402,-6440.41,0.00010958,2]
[360636503,1746912661411,-1037.4,0.00010958,2]
[360636505,1746912661421,-400.0,0.00010958,2]
[360636507,1746912661433,-440.94,0.00010958,2]
[360636508,1746912661444,-400.0,0.00010958,2]
[360636511,1746912661459,-4790.07,0.00010958,2]
[360636512,1746912661471,-1429.95,0.00010958,2]
[360636514,1746912661481,-400.0,0.00010958,2]
[360636517,1746912661490,-400.0,0.00010958,2]
[360636519,1746912661500,-430.02,0.00010958,2]
[360636520,1746912661509,-400.0,0.00010958,2]
[360636523,1746912661519,-400.0,0.00010958,2]
[360636525,1746912661529,-400.0,0.00010958,2]
[360636527,1746912661538,-1223.02,0.00010958,2]
[360636529,1746912661548,-848.59,0.00010958,2]
[360636531,1746912661558,-400.0,0.00010958,2]
[360636533,1746912661567,-2882.98,0.00010958,2]
[360636535,1746912661576,-513.02,0.00010958,2]
[360636536,1746912661585,-463.45,0.00010958,2]
[360636538,1746912661595,-573.32,0.00010958,2]
[360636540,1746912661604,-1204.18,0.00010958,2]
[360636542,1746912661616,-1967.65,0.00010958,2]
[360636545,1746912661626,-3088.11,0.00010958,2]
[360636546,1746912661635,-400.0,0.00010958,2]
[360636549,1746912661644,-1232.95,0.00010958,2]
[360636550,1746912661654,-1041.57,0.00010958,2]
[360636553,1746912661664,-700.78,0.00010958,2]
[360636555,1746912661676,-4783.86,0.00010958,2]
[360636557,1746912661686,-407.69,0.00010958,2]
[360636559,1746912661695,-1652.45,0.00010958,2]
[360636561,1746912661705,-444.01,0.00010958,2]
[360636563,1746912661715,-1176.69,0.00010958,2]
[360636565,1746912661724,-513.96,0.00010958,2]
[360636567,1746912661734,-656.69,0.00010958,2]
[360636569,1746912661743,-400.0,0.00010958,2]
[360636571,1746912661753,-1565.91,0.00010958,2]
[360636573,1746912661762,-1000.0,0.00010959,2]
[360636575,1746912661772,-3083.6266054,0.00010959,2]
[360636577,1746912661781,-151.0,0.00011,2]
[360636579,1746912661790,-151.0,0.00011,2]
[360636581,1746912661799,-151.0,0.00011,2]
[360636583,1746912661809,-151.0,0.00011,2]
[360636585,1746912661819,-151.0,0.00011,2]
[360636587,1746912661828,-151.0,0.00011,2]
[360636589,1746912661837,-156.79811284,0.00011013,2]
[360636591,1746912661848,-500.0,0.0001111,2]
[360636593,1746912661858,-711.693509,0.00011157,2]
[360636595,1746912661868,-200.0,0.00011196,2]
[360636597,1746912661878,-200.0,0.00011196,2]
[360636599,1746912661887,-1200.0,0.000112,2]
[360636601,1746912661897,-160.5413763,0.00011202,2]
[360636603,1746912661906,-153.0,0.00011202,2]
[360636605,1746912661916,-153.0,0.00011202,2]
[360636607,1746912661925,-153.0,0.00011202,2]
[360636609,1746912661935,-450.55,0.00011232,2]
[360636611,1746912661946,-400.0,0.00011232,2]
[360636613,1746912661956,-423.74167387,0.00011232,2]
[360636615,1746912661965,-400.0,0.00011232,2]
[360636617,1746912661974,-483.15,0.00011232,2]
[360636619,1746912661984,-400.0,0.00011232,2]
[360636621,1746912661993,-400.0,0.00011232,2]
[360636623,1746912662003,-533.63193553,0.00011232,2]
[360636625,1746912662013,-294.22752451,0.00011232,2]
[360636628,1746912662023,-400.0,0.00011232,2]
[360636629,1746912662033,-400.0,0.00011232,2]
[360636632,1746912662042,-400.0,0.00011232,2]
[360636633,1746912662051,-400.0,0.00011232,2]
[360636636,1746912662061,-400.0,0.00011232,2]
[360636638,1746912662071,-385.86600918,0.00011232,2]
[360636640,1746912662080,-400.0,0.00011232,2]
[360636642,1746912662090,-400.0,0.00011232,2]
[360636644,1746912662100,-400.0,0.00011232,2]
[360636646,1746912662110,-400.0,0.00011232,2]
[360636647,1746912662119,-767.08,0.00011232,2]
[360636648,1746912662128,-523.05,0.00011232,2]
[360636649,1746912662139,-420.69443409,0.00011232,2]
[360636650,1746912662148,-400.0,0.00011232,2]
[360636651,1746912662157,-400.0,0.00011232,2]
[360636652,1746912662166,-428.69,0.00011232,2]
[360636653,1746912662176,-1231.88,0.00011232,2]
[360636654,1746912662186,-293.0348467,0.00011232,2]
[360636655,1746912662196,-400.0,0.00011232,2]
[360636656,1746912662206,-400.0,0.00011232,2]
[360636657,1746912662215,-555.94,0.00011232,2]
[360636658,1746912662224,-1008.55,0.00011232,2]
[360636660,1746912662234,-400.0,0.00011232,2]
[360636661,1746912662245,-632.05,0.00011232,2]
[360636663,1746912662255,-1052.41,0.00011232,2]
[360636665,1746912662265,-400.0,0.00011232,2]
[360636667,1746912662274,-400.0,0.00011232,2]
[360636669,1746912662284,-459.64,0.00011232,2]
[360636672,1746912662294,-468.37,0.00011232,2]
[360636674,1746912662304,-403.73,0.00011232,2]
[360636676,1746912662314,-413.92,0.00011232,2]
[360636678,1746912662324,-619.62,0.00011232,2]
[360636680,1746912662333,-695.09,0.00011232,2]
[360636682,1746912662343,-735.58,0.00011232,2]
[360636684,1746912662353,-721.89,0.00011232,2]
[360636686,1746912662363,-400.0,0.00011232,2]
[360636688,1746912662375,-1548.4,0.00011232,2]
[360636690,1746912662388,-2356.91,0.00011232,2]
[360636692,1746912662398,-794.11,0.00011232,2]
[360636694,1746912662408,-400.0,0.00011232,2]
[360636696,1746912662418,-838.55,0.00011232,2]
[360636698,1746912662428,-400.0,0.00011232,2]
[360636700,1746912662438,-400.0,0.00011232,2]
[360636702,1746912662447,-3381.21,0.00011232,2]
[360636704,1746912662457,-400.0,0.00011232,2]
[360636721,1746912662612,-2898.64,0.00011232,2]
[360636724,1746912662628,-481.84,0.00011232,2]
[360636726,1746912662638,-400.0,0.00011232,2]
[360636728,1746912662647,-400.0,0.00011232,2]
[360636730,1746912662657,-400.0,0.00011232,2]
[360636732,1746912662667,-1333.51,0.00011232,2]
[360636734,1746912662676,-633.58,0.00011232,2]
[360636736,1746912662686,-400.0,0.00011232,2]
[360636738,1746912662696,-494.9,0.00011232,2]
[360636740,1746912662706,-513.57,0.00011232,2]
[360636742,1746912662715,-802.91,0.00011232,2]
[360636744,1746912662725,-505.78,0.00011232,2]
[360636746,1746912662735,-626.66,0.00011232,2]
[360636748,1746912662745,-809.51,0.00011232,2]
[360636750,1746912662755,-482.48,0.00011232,2]
[360636752,1746912662765,-400.0,0.00011232,2]
[360636754,1746912662775,-397.5997601,0.00011232,2]
[360636756,1746912662784,-842.73,0.00011232,2]
[360636758,1746912662794,-697.59,0.00011232,2]
[360636760,1746912662803,-1841.44,0.00011232,2]
[360636762,1746912662813,-400.0,0.00011232,2]
[360636764,1746912662823,-788.65,0.00011232,2]
[360636766,1746912662832,-1039.37,0.00011232,2]
[360636768,1746912662842,-569.05,0.00011232,2]
[360636770,1746912662851,-2342.17,0.00011232,2]
[360636773,1746912662861,-451.36,0.00011232,2]
[360636775,1746912662871,-695.2,0.00011232,2]
[360636777,1746912662881,-1028.56,0.00011232,2]
[360636779,1746912662890,-400.0,0.00011232,2]
[360636781,1746912662899,-2119.75,0.00011232,2]
[360636783,1746912662908,-498.13,0.00011232,2]
[360636785,1746912662919,-4434.68,0.00011232,2]
[360636787,1746912662928,-935.35,0.00011232,2]
[360636789,1746912662938,-680.96,0.00011232,2]
[360636791,1746912662947,-626.61,0.00011232,2]
[360636793,1746912662959,-424.95,0.00011232,2]
[360636795,1746912662968,-1042.16,0.00011232,2]
[360636797,1746912662978,-2312.88,0.00011232,2]
[360636799,1746912662987,-400.0,0.00011232,2]
[360636801,1746912662997,-400.0,0.00011232,2]
[360636803,1746912663007,-688.73,0.00011232,2]
[360636805,1746912663017,-706.22,0.00011232,2]
[360636807,1746912663027,-439.66,0.00011232,2]
[360636809,1746912663036,-1085.41,0.00011232,2]
[360636811,1746912663046,-841.55,0.00011232,2]
[360636813,1746912663056,-671.75,0.00011232,2]
[360636815,1746912663066,-400.0,0.00011232,2]
[360636817,1746912663076,-2146.14,0.00011232,2]
[360636819,1746912663085,-1015.72,0.00011232,2]
[360636822,1746912663096,-6440.41,0.00011232,2]
[360636824,1746912663106,-1037.4,0.00011232,2]
[360636826,1746912663116,-400.0,0.00011232,2]
[360636828,1746912663126,-440.94,0.00011232,2]
[360636830,1746912663136,-400.0,0.00011232,2]
[360636832,1746912663146,-4790.07,0.00011232,2]
[360636834,1746912663156,-1429.95,0.00011232,2]
[360636836,1746912663166,-513.96150325,0.00011232,2]
[360636838,1746912663176,-219.28286827,0.00011232,2]
[360636840,1746912663187,-430.02,0.00011232,2]
[360636842,1746912663197,-400.0,0.00011232,2]
[360636844,1746912663207,-400.0,0.00011232,2]
[360636846,1746912663217,-400.0,0.00011232,2]
[360636849,1746912663228,-1223.02,0.00011232,2]
[360636851,1746912663238,-848.59,0.00011232,2]
[360636853,1746912663248,-400.0,0.00011232,2]
[360636855,1746912663258,-2882.98,0.00011232,2]
[360636857,1746912663269,-513.02,0.00011232,2]
[360636859,1746912663279,-463.45,0.00011232,2]
[360636861,1746912663289,-573.32,0.00011232,2]
[360636863,1746912663300,-1204.18,0.00011232,2]
[360636865,1746912663310,-1967.65,0.00011232,2]
[360636867,1746912663320,-3088.11,0.00011232,2]
[360636869,1746912663330,-355.81877932,0.00011232,2]
[360636871,1746912663340,-1232.95,0.00011232,2]
[360636873,1746912663352,-1041.57,0.00011232,2]
[360636875,1746912663363,-700.78,0.00011232,2]
[360636877,1746912663376,-4783.86,0.00011232,2]
[360636879,1746912663387,-407.69,0.00011232,2]
[360636881,1746912663398,-1652.45,0.00011232,2]
[360636883,1746912663411,-444.01,0.00011232,2]
[360636885,1746912663422,-1176.69,0.00011232,2]
[360636887,1746912663433,-513.96,0.00011232,2]
[360636889,1746912663443,-656.69,0.00011232,2]
[360636891,1746912663455,-400.0,0.00011232,2]
[360636893,1746912663466,-1565.91,0.00011232,2]
[360636896,1746912663477,-223.0315306,0.0001129,2]
[360636898,1746912663487,-155.0,0.00011291,2]
[360636900,1746912663497,-450.55,0.00011506,2]
[360636901,1746912663507,-200.00000025,0.00011506,2]
[360636904,1746912663517,-400.0,0.00011506,2]
[360636906,1746912663528,-483.15,0.00011506,2]
[360636908,1746912663538,-433.32770815,0.00011506,2]
[360636910,1746912663549,-279.45344447,0.00011506,2]
[360636912,1746912663559,-400.0,0.00011506,2]
[360636913,1746912663569,-330.69960564,0.00011506,2]
[360636915,1746912663579,-400.0,0.00011506,2]
[360636917,1746912663589,-241.21344428,0.00011506,2]
[360636920,1746912663601,-400.0,0.00011506,2]
[360636922,1746912663611,-450.99289787,0.00011506,2]
[360636924,1746912663621,-400.0,0.00011506,2]
[360636926,1746912663631,-400.0,0.00011506,2]
[360636928,1746912663640,-400.0,0.00011506,2]
[360636930,1746912663650,-767.08,0.00011506,2]
[360636932,1746912663659,-523.05,0.00011506,2]
[360636934,1746912663669,-400.0,0.00011506,2]
[360636936,1746912663679,-400.0,0.00011506,2]
[360636938,1746912663688,-428.69,0.00011506,2]
[360636940,1746912663698,-1231.88,0.00011506,2]
[360636942,1746912663708,-400.0,0.00011506,2]
[360636944,1746912663719,-400.0,0.00011506,2]
[360636946,1746912663729,-555.94,0.00011506,2]
[360636948,1746912663738,-1008.55,0.00011506,2]
[360636950,1746912663748,-400.0,0.00011506,2]
[360636952,1746912663758,-632.05,0.00011506,2]
[360636954,1746912663768,-1052.41,0.00011506,2]
[360636956,1746912663778,-400.0,0.00011506,2]
[360636958,1746912663787,-400.0,0.00011506,2]
[360636960,1746912663797,-459.64,0.00011506,2]
[360636962,1746912663807,-468.37,0.00011506,2]
[360636964,1746912663817,-403.73,0.00011506,2]
[360636966,1746912663827,-413.92,0.00011506,2]
[360636968,1746912663837,-619.62,0.00011506,2]
[360636970,1746912663848,-695.09,0.00011506,2]
[360636972,1746912663858,-735.58,0.00011506,2]
[360636974,1746912663868,-721.89,0.00011506,2]
[360636976,1746912663878,-400.0,0.00011506,2]
[360636978,1746912663889,-1548.4,0.00011506,2]
[360636981,1746912663900,-2356.91,0.00011506,2]
[360636983,1746912663910,-794.11,0.00011506,2]
[360636985,1746912663920,-400.0,0.00011506,2]
[360636987,1746912663931,-838.55,0.00011506,2]
[360636989,1746912663941,-400.0,0.00011506,2]
[360636991,1746912663951,-400.0,0.00011506,2]
[360636993,1746912663962,-3381.21,0.00011506,2]
[360636995,1746912663972,-400.0,0.00011506,2]
[360636997,1746912663982,-2898.64,0.00011506,2]
[360636999,1746912663992,-481.84,0.00011506,2]
[360637001,1746912664001,-400.0,0.00011506,2]
[360637003,1746912664011,-400.0,0.00011506,2]
[360637005,1746912664021,-400.0,0.00011506,2]
[360637007,1746912664031,-1333.51,0.00011506,2]
[360637009,1746912664041,-633.58,0.00011506,2]
[360637011,1746912664051,-400.0,0.00011506,2]
[360637013,1746912664061,-494.9,0.00011506,2]
[360637015,1746912664070,-513.57,0.00011506,2]
[360637017,1746912664080,-802.91,0.00011506,2]
[360637019,1746912664090,-505.78,0.00011506,2]
[360637021,1746912664101,-626.66,0.00011506,2]
[360637023,1746912664110,-809.51,0.00011506,2]
[360637026,1746912664121,-400.0,0.00011506,2]
[360637028,1746912664131,-842.73,0.00011506,2]
[360637030,1746912664142,-697.59,0.00011506,2]
[360637032,1746912664152,-1841.44,0.00011506,2]
[360637034,1746912664162,-379.25806637,0.00011506,2]
[360637036,1746912664171,-788.65,0.00011506,2]
[360637038,1746912664181,-1039.37,0.00011506,2]
[360637040,1746912664190,-569.05,0.00011506,2]
[360637042,1746912664200,-2342.17,0.00011506,2]
[360637044,1746912664209,-451.36,0.00011506,2]
[360637045,1746912664218,-695.2,0.00011506,2]
[360637046,1746912664228,-1028.56,0.00011506,2]
[360637047,1746912664237,-400.0,0.00011506,2]
[360637048,1746912664246,-498.13,0.00011506,2]
[360637049,1746912664256,-2119.75,0.00011506,2]
[360637050,1746912664266,-4434.68,0.00011506,2]
[360637051,1746912664275,-935.35,0.00011506,2]
[360637052,1746912664285,-680.96,0.00011506,2]
[360637053,1746912664294,-626.61,0.00011506,2]
[360637054,1746912664304,-424.95,0.00011506,2]
[360637055,1746912664313,-1042.16,0.00011506,2]
[360637056,1746912664323,-2312.88,0.00011506,2]
[360637057,1746912664332,-400.0,0.00011506,2]
[360637059,1746912664342,-400.0,0.00011506,2]
[360637061,1746912664352,-688.73,0.00011506,2]
[360637063,1746912664362,-706.22,0.00011506,2]
[360637065,1746912664374,-439.66,0.00011506,2]
[360637067,1746912664385,-1085.41,0.00011506,2]
[360637069,1746912664394,-841.55,0.00011506,2]
[360637071,1746912664403,-671.75,0.00011506,2]
[360637073,1746912664413,-400.0,0.00011506,2]
[360637074,1746912664423,-2146.14,0.00011506,2]
[360637077,1746912664433,-1015.72,0.00011506,2]
[360637079,1746912664443,-6440.41,0.00011506,2]
[360637081,1746912664454,-1037.4,0.00011506,2]
[360637083,1746912664464,-440.94,0.00011506,2]
[360637085,1746912664473,-400.0,0.00011506,2]
[360637086,1746912664483,-400.0,0.00011506,2]
[360637088,1746912664493,-4790.07,0.00011506,2]
[360637091,1746912664503,-1429.95,0.00011506,2]
[360637093,1746912664513,-430.02,0.00011506,2]
[360637095,1746912664523,-400.0,0.00011506,2]
[360637097,1746912664533,-264.63508997,0.00011506,2]
[360637099,1746912664543,-400.0,0.00011506,2]
[360637101,1746912664553,-1223.02,0.00011506,2]
[360637103,1746912664562,-848.59,0.00011506,2]
[360637105,1746912664572,-400.0,0.00011506,2]
[360637107,1746912664582,-2882.98,0.00011506,2]
[360637109,1746912664591,-513.02,0.00011506,2]